[Event "Titled Tuesday Blitz September 13 Late 2022"]
[White "Dounis, Alexandros"]
[Black "Boruchovsky, Avital"]
[WhiteFideId "4213238"]
[BlackFideId "2800055"]
[WhiteElo "2204"]
[BlackElo "2466"]
[Result "1-0"]
[Round "04"]
[TimeControl "180+1"]
[Date "2022.09.13"]
[WhiteClock "0:00:18"]
[BlackClock "0:00:06"]

1. Nf3 {[%clk 0:02:58]}  c5 {[%clk 0:02:59]} 2. e4 {[%clk 0:02:56]}  Nc6 {[%clk 0:03:00]} 3. d4 {[%clk 0:02:53]}  cxd4 {[%clk 0:02:59]} 4. Nxd4 {[%clk 0:02:54]}  Nf6 {[%clk 0:02:59]} 5. Nc3 {[%clk 0:02:53]}  e5 {[%clk 0:02:57]} 6. Ndb5 {[%clk 0:02:54]}  d6 {[%clk 0:02:55]} 7. Bg5 {[%clk 0:02:52]}  a6 {[%clk 0:02:54]} 8. Na3 {[%clk 0:02:52]}  b5 {[%clk 0:02:53]} 9. Nd5 {[%clk 0:02:52]}  Be6 {[%clk 0:02:52]} 10. c4 {[%clk 0:02:49]}  b4 {[%clk 0:02:47]} 11. Nc2 {[%clk 0:02:49]}  a5 {[%clk 0:02:47]} 12. Be2 {[%clk 0:02:43]}  Be7 {[%clk 0:02:41]} 13. Bxf6 {[%clk 0:02:42]}  gxf6 {[%clk 0:02:36]} 14. O-O {[%clk 0:02:40]}  O-O {[%clk 0:02:36]} 15. Bg4 {[%clk 0:02:38]}  Kh8 {[%clk 0:02:34]} 16. Nce3 {[%clk 0:02:34]}  Rg8 {[%clk 0:02:30]} 17. Bf5 {[%clk 0:02:33]}  Nd4 {[%clk 0:02:30]} 18. Qh5 {[%clk 0:02:28]}  Rg7 {[%clk 0:02:22]} 19. Rad1 {[%clk 0:02:22]}  Qd7 {[%clk 0:02:22]} 20. Rxd4 {[%clk 0:02:19]}  exd4 {[%clk 0:02:19]} 21. Ng4 {[%clk 0:02:18]}  Bxf5 {[%clk 0:01:55]} 22. exf5 {[%clk 0:02:17]}  Rg5 {[%clk 0:01:49]} 23. Qxf7 {[%clk 0:02:11]}  Rxg4 {[%clk 0:01:13]} 24. Nxf6 {[%clk 0:02:00]}  Qxf5 {[%clk 0:01:11]} 25. Qxe7 {[%clk 0:02:00]}  Rg7 {[%clk 0:00:57]} 26. Qxd6 {[%clk 0:01:48]}  Rc8 {[%clk 0:00:23]} 27. Qxd4 {[%clk 0:01:40]}  Rf8 {[%clk 0:00:20]} 28. Nd5 {[%clk 0:01:32]}  Qg4 {[%clk 0:00:17]} 29. Qxg4 {[%clk 0:01:24]}  Rxg4 {[%clk 0:00:17]} 30. f4 {[%clk 0:01:13]}  Rg6 {[%clk 0:00:16]} 31. Re1 {[%clk 0:01:10]}  Rc6 {[%clk 0:00:14]} 32. b3 {[%clk 0:01:06]}  Rcc8 {[%clk 0:00:15]} 33. Kf2 {[%clk 0:00:59]}  Rce8 {[%clk 0:00:13]} 34. Rxe8 {[%clk 0:00:58]}  Rxe8 {[%clk 0:00:14]} 35. g4 {[%clk 0:00:52]}  Kg7 {[%clk 0:00:14]} 36. h4 {[%clk 0:00:50]}  Re4 {[%clk 0:00:14]} 37. g5 {[%clk 0:00:44]}  Kg6 {[%clk 0:00:13]} 38. h5+ {[%clk 0:00:39]}  Kf5 {[%clk 0:00:12]} 39. Kf3 {[%clk 0:00:39]}  Re1 {[%clk 0:00:11]} 40. Ne3+ {[%clk 0:00:34]}  Ke6 {[%clk 0:00:11]} 41. Ke4 {[%clk 0:00:27]}  Rh1 {[%clk 0:00:10]} 42. h6 {[%clk 0:00:28]}  Rh2 {[%clk 0:00:10]} 43. f5+ {[%clk 0:00:27]}  Kf7 {[%clk 0:00:10]} 44. Ng4 {[%clk 0:00:20]}  Rxa2 {[%clk 0:00:10]} 45. Ne5+ {[%clk 0:00:21]}  Kg8 {[%clk 0:00:09]} 46. g6 {[%clk 0:00:20]}  hxg6 {[%clk 0:00:09]} 47. fxg6 {[%clk 0:00:21]}  Rh2 {[%clk 0:00:08]} 48. Ng4 {[%clk 0:00:18]}  Rh4 {[%clk 0:00:06]} 49. Kf5 {[%clk 0:00:18]}  Rxg4 {[%clk 0:00:06]} 50. Kxg4 {[%clk 0:00:17]}  a4 {[%clk 0:00:07]} 51. c5 {[%clk 0:00:17]}  axb3 {[%clk 0:00:05]} 52. c6 {[%clk 0:00:18]}  b2 {[%clk 0:00:06]} 53. c7 {[%clk 0:00:18]} 1-0


[Site "https://www.chess.com"]

[Event "Titled Tuesday Blitz September 13 Late 2022"]
[White "Ekdyshman, Mikhail"]
[Black "Atanasov, Anthony"]
[WhiteFideId "4149416"]
[BlackFideId "2623897"]
[WhiteElo "2146"]
[BlackElo "1933"]
[Result "0-1"]
[Round "04"]
[TimeControl "180+1"]
[Date "2022.09.13"]
[WhiteClock "0:00:01"]
[BlackClock "0:00:02"]

1. e4 {[%clk 0:03:00]}  e5 {[%clk 0:02:59]} 2. Nf3 {[%clk 0:03:00]}  Nf6 {[%clk 0:03:00]} 3. Nc3 {[%clk 0:03:01]}  Nc6 {[%clk 0:02:59]} 4. d4 {[%clk 0:03:01]}  exd4 {[%clk 0:03:00]} 5. Nxd4 {[%clk 0:03:02]}  Nxe4 {[%clk 0:03:01]} 6. Nxe4 {[%clk 0:02:44]}  Qe7 {[%clk 0:02:59]} 7. f3 {[%clk 0:02:33]}  d5 {[%clk 0:02:58]} 8. Bb5 {[%clk 0:02:24]}  Bd7 {[%clk 0:02:53]} 9. Bxc6 {[%clk 0:02:18]}  bxc6 {[%clk 0:02:52]} 10. O-O {[%clk 0:02:13]}  dxe4 {[%clk 0:02:51]} 11. fxe4 {[%clk 0:02:11]}  O-O-O {[%clk 0:02:45]} 12. Qe2 {[%clk 0:02:09]}  Kb7 {[%clk 0:02:34]} 13. Rf3 {[%clk 0:02:03]}  Be6 {[%clk 0:02:19]} 14. Ra3 {[%clk 0:01:11]}  Rxd4 {[%clk 0:01:48]} 15. Qa6+ {[%clk 0:01:08]}  Kb8 {[%clk 0:01:48]} 16. Qxa7+ {[%clk 0:01:08]}  Kc8 {[%clk 0:01:48]} 17. Qxd4 {[%clk 0:01:07]}  Qc5 {[%clk 0:01:13]} 18. c3 {[%clk 0:00:44]}  Qxd4+ {[%clk 0:01:11]} 19. cxd4 {[%clk 0:00:45]}  Bxa3 {[%clk 0:01:11]} 20. bxa3 {[%clk 0:00:46]}  f5 {[%clk 0:01:06]} 21. e5 {[%clk 0:00:43]}  Rd8 {[%clk 0:01:01]} 22. Be3 {[%clk 0:00:43]}  Rd5 {[%clk 0:01:01]} 23. Rc1 {[%clk 0:00:42]}  Kd7 {[%clk 0:00:58]} 24. g3 {[%clk 0:00:39]}  Rb5 {[%clk 0:00:55]} 25. Rc2 {[%clk 0:00:35]}  Bd5 {[%clk 0:00:50]} 26. Kf2 {[%clk 0:00:28]}  Be4 {[%clk 0:00:41]} 27. Rd2 {[%clk 0:00:23]}  Ra5 {[%clk 0:00:40]} 28. Rb2 {[%clk 0:00:17]}  Bd5 {[%clk 0:00:41]} 29. h4 {[%clk 0:00:11]}  Rxa3 {[%clk 0:00:41]} 30. Ke2 {[%clk 0:00:09]}  Bxa2 {[%clk 0:00:38]} 31. Rb8 {[%clk 0:00:06]}  Bc4+ {[%clk 0:00:26]} 32. Kf2 {[%clk 0:00:06]}  Ke7 {[%clk 0:00:05]} 33. Bg5+ {[%clk 0:00:05]}  Kf7 {[%clk 0:00:05]} 34. Rc8 {[%clk 0:00:05]}  Ra7 {[%clk 0:00:03]} 35. Bd8 {[%clk 0:00:05]}  Ra2+ {[%clk 0:00:02]} 36. Ke3 {[%clk 0:00:05]}  Ra3+ {[%clk 0:00:02]} 37. Kf2 {[%clk 0:00:05]}  Bd5 {[%clk 0:00:03]} 38. Rxc7+ {[%clk 0:00:05]}  Kg6 {[%clk 0:00:03]} 39. Bg5 {[%clk 0:00:05]}  Rf3+ {[%clk 0:00:02]} 40. Ke2 {[%clk 0:00:04]}  h6 {[%clk 0:00:02]} 41. Bf4 {[%clk 0:00:04]}  Rc3 {[%clk 0:00:01]} 42. Re7 {[%clk 0:00:04]}  Bc4+ {[%clk 0:00:01]} 43. Kd2 {[%clk 0:00:04]}  Rd3+ {[%clk 0:00:02]} 44. Kc2 {[%clk 0:00:05]}  Rxd4 {[%clk 0:00:02]} 45. Kc3 {[%clk 0:00:05]}  Re4 {[%clk 0:00:02]} 46. Rc7 {[%clk 0:00:04]}  Bd5 {[%clk 0:00:03]} 47. h5+ {[%clk 0:00:04]}  Kh7 {[%clk 0:00:03]} 48. Kd3 {[%clk 0:00:03]}  Kg8 {[%clk 0:00:03]} 49. Rc8+ {[%clk 0:00:03]}  Kf7 {[%clk 0:00:03]} 50. Rc7+ {[%clk 0:00:04]}  Kf8 {[%clk 0:00:04]} 51. Bd2 {[%clk 0:00:03]}  Bc4+ {[%clk 0:00:01]} 52. Kc2 {[%clk 0:00:03]}  Bb5 {[%clk 0:00:01]} 53. Bc3 {[%clk 0:00:03]}  Re2+ {[%clk 0:00:01]} 54. Kb3 {[%clk 0:00:04]}  Re3 {[%clk 0:00:02]} 55. Kb4 {[%clk 0:00:04]}  Re4+ {[%clk 0:00:02]} 56. Ka5 {[%clk 0:00:04]}  Kg8 {[%clk 0:00:02]} 57. e6 {[%clk 0:00:04]}  Rxe6 {[%clk 0:00:02]} 58. Rxg7+ {[%clk 0:00:04]}  Kf8 {[%clk 0:00:02]} 59. Rc7 {[%clk 0:00:04]}  Re3 {[%clk 0:00:02]} 60. Bg7+ {[%clk 0:00:04]}  Kg8 {[%clk 0:00:02]} 61. Bxh6 {[%clk 0:00:04]}  Rxg3 {[%clk 0:00:02]} 62. Bf4 {[%clk 0:00:04]}  Rg4 {[%clk 0:00:02]} 63. Be5 {[%clk 0:00:04]}  Rh4 {[%clk 0:00:02]} 64. Rg7+ {[%clk 0:00:03]}  Kf8 {[%clk 0:00:02]} 65. Rg5 {[%clk 0:00:03]}  Bd3 {[%clk 0:00:03]} 66. h6 {[%clk 0:00:02]}  Kf7 {[%clk 0:00:02]} 67. Rg7+ {[%clk 0:00:01]}  Ke6 {[%clk 0:00:02]} 0-1


[Site "https://www.chess.com"]

[Event "Titled Tuesday Blitz September 13 Late 2022"]
[White "Ibrahimli, Murad"]
[Black "Keymer, Vincent"]
[WhiteFideId "13410229"]
[BlackFideId "12940690"]
[WhiteElo "2109"]
[BlackElo "2585"]
[Result "0-1"]
[Round "04"]
[TimeControl "180+1"]
[Date "2022.09.13"]
[WhiteClock "0:00:06"]
[BlackClock "0:00:24"]

1. d4 {[%clk 0:03:00]}  Nf6 {[%clk 0:02:59]} 2. c4 {[%clk 0:03:01]}  e6 {[%clk 0:03:00]} 3. Nf3 {[%clk 0:03:01]}  d5 {[%clk 0:03:00]} 4. Nc3 {[%clk 0:03:01]}  c5 {[%clk 0:03:00]} 5. e3 {[%clk 0:02:59]}  Nc6 {[%clk 0:02:59]} 6. cxd5 {[%clk 0:02:59]}  exd5 {[%clk 0:02:59]} 7. Bb5 {[%clk 0:02:59]}  cxd4 {[%clk 0:02:59]} 8. Nxd4 {[%clk 0:02:58]}  Bd7 {[%clk 0:02:59]} 9. O-O {[%clk 0:02:58]}  Bd6 {[%clk 0:02:59]} 10. Nf3 {[%clk 0:02:58]}  Bg4 {[%clk 0:02:53]} 11. Be2 {[%clk 0:02:55]}  O-O {[%clk 0:02:51]} 12. h3 {[%clk 0:02:23]}  Bh5 {[%clk 0:02:49]} 13. Qb3 {[%clk 0:02:23]}  Na5 {[%clk 0:02:23]} 14. Qa4 {[%clk 0:02:15]}  Rc8 {[%clk 0:02:05]} 15. Rd1 {[%clk 0:02:11]}  a6 {[%clk 0:01:50]} 16. Qh4 {[%clk 0:01:36]}  Bg6 {[%clk 0:01:49]} 17. Kf1 {[%clk 0:01:14]}  Bb8 {[%clk 0:01:45]} 18. Nd4 {[%clk 0:00:57]}  Qd6 {[%clk 0:01:24]} 19. Bf3 {[%clk 0:00:51]}  Rfd8 {[%clk 0:01:20]} 20. g3 {[%clk 0:00:43]}  Nc4 {[%clk 0:01:16]} 21. Nce2 {[%clk 0:00:36]}  Ne5 {[%clk 0:01:11]} 22. Bg2 {[%clk 0:00:34]}  h6 {[%clk 0:01:00]} 23. Bd2 {[%clk 0:00:23]}  Bd3 {[%clk 0:00:43]} 24. Bc3 {[%clk 0:00:22]}  Ng6 {[%clk 0:00:40]} 25. Rxd3 {[%clk 0:00:14]}  Nxh4 {[%clk 0:00:39]} 26. gxh4 {[%clk 0:00:15]}  Qd7 {[%clk 0:00:38]} 27. Rad1 {[%clk 0:00:13]}  Be5 {[%clk 0:00:38]} 28. Ng1 {[%clk 0:00:08]}  Ne4 {[%clk 0:00:34]} 29. Be1 {[%clk 0:00:05]}  Bxd4 {[%clk 0:00:24]} 30. Nf3 {[%clk 0:00:06]} 0-1


[Site "https://www.chess.com"]

[Event "Titled Tuesday Blitz September 13 Late 2022"]
[White "Indjic, Aleksandar"]
[Black "Lamaze, Simon"]
[WhiteFideId "911925"]
[BlackFideId "36069264"]
[WhiteElo "2592"]
[BlackElo "2131"]
[Result "1-0"]
[Round "04"]
[TimeControl "180+1"]
[Date "2022.09.13"]
[WhiteClock "0:01:28"]
[BlackClock "0:00:49"]

1. e4 {[%clk 0:02:53]}  c5 {[%clk 0:02:58]} 2. Nf3 {[%clk 0:02:52]}  Nc6 {[%clk 0:02:59]} 3. Bb5 {[%clk 0:02:49]}  d6 {[%clk 0:02:57]} 4. O-O {[%clk 0:02:47]}  Bd7 {[%clk 0:02:58]} 5. Re1 {[%clk 0:02:46]}  Nf6 {[%clk 0:02:57]} 6. c3 {[%clk 0:02:45]}  a6 {[%clk 0:02:55]} 7. Bf1 {[%clk 0:02:38]}  Bg4 {[%clk 0:02:55]} 8. h3 {[%clk 0:02:37]}  Bxf3 {[%clk 0:02:54]} 9. Qxf3 {[%clk 0:02:36]}  e6 {[%clk 0:02:53]} 10. d3 {[%clk 0:02:35]}  Be7 {[%clk 0:02:48]} 11. Nd2 {[%clk 0:02:32]}  O-O {[%clk 0:02:46]} 12. Qd1 {[%clk 0:02:32]}  d5 {[%clk 0:02:41]} 13. e5 {[%clk 0:02:30]}  Nd7 {[%clk 0:02:40]} 14. Nf3 {[%clk 0:02:31]}  b5 {[%clk 0:02:38]} 15. d4 {[%clk 0:02:26]}  c4 {[%clk 0:02:36]} 16. g3 {[%clk 0:02:17]}  b4 {[%clk 0:02:36]} 17. h4 {[%clk 0:02:17]}  bxc3 {[%clk 0:02:35]} 18. bxc3 {[%clk 0:02:16]}  Qa5 {[%clk 0:02:26]} 19. Qc2 {[%clk 0:02:13]}  Rfb8 {[%clk 0:02:24]} 20. h5 {[%clk 0:02:00]}  Ba3 {[%clk 0:02:20]} 21. h6 {[%clk 0:01:58]}  g6 {[%clk 0:02:16]} 22. Ng5 {[%clk 0:01:59]}  Bxc1 {[%clk 0:02:15]} 23. Qxc1 {[%clk 0:02:00]}  Nd8 {[%clk 0:01:57]} 24. Bh3 {[%clk 0:01:56]}  Rb6 {[%clk 0:01:44]} 25. Re3 {[%clk 0:01:56]}  Rab8 {[%clk 0:01:42]} 26. Rf3 {[%clk 0:01:56]}  Qa4 {[%clk 0:01:10]} 27. Qf4 {[%clk 0:01:51]}  Rb1+ {[%clk 0:01:09]} 28. Rxb1 {[%clk 0:01:34]}  Rxb1+ {[%clk 0:01:10]} 29. Kh2 {[%clk 0:01:34]}  Qd1 {[%clk 0:01:01]} 30. Bg2 {[%clk 0:01:34]}  Qc2 {[%clk 0:00:53]} 31. Nxf7 {[%clk 0:01:30]}  Nc6 {[%clk 0:00:50]} 32. Nd6 {[%clk 0:01:28]}  Nd8 {[%clk 0:00:49]} 33. Qg5 {[%clk 0:01:28]} 1-0


[Site "https://www.chess.com"]

[Event "Titled Tuesday Blitz September 13 Late 2022"]
[White "Ivic, Velimir"]
[Black "Al-Tarboush, Ward"]
[WhiteFideId "950122"]
[BlackFideId "7601450"]
[WhiteElo "2625"]
[BlackElo "2234"]
[Result "1-0"]
[Round "04"]
[TimeControl "180+1"]
[Date "2022.09.13"]
[WhiteClock "0:02:13"]
[BlackClock "0:01:11"]

1. Nf3 {[%clk 0:03:00]}  d5 {[%clk 0:02:58]} 2. g3 {[%clk 0:03:01]}  Nf6 {[%clk 0:02:58]} 3. Bg2 {[%clk 0:03:02]}  c6 {[%clk 0:02:58]} 4. O-O {[%clk 0:03:03]}  Bf5 {[%clk 0:02:58]} 5. d3 {[%clk 0:03:04]}  e6 {[%clk 0:02:58]} 6. b3 {[%clk 0:03:04]}  Be7 {[%clk 0:02:59]} 7. Bb2 {[%clk 0:03:05]}  O-O {[%clk 0:02:59]} 8. Nbd2 {[%clk 0:03:06]}  h6 {[%clk 0:02:59]} 9. Re1 {[%clk 0:03:07]}  Bh7 {[%clk 0:02:46]} 10. e4 {[%clk 0:03:07]}  dxe4 {[%clk 0:02:38]} 11. dxe4 {[%clk 0:03:06]}  c5 {[%clk 0:02:37]} 12. Ne5 {[%clk 0:03:05]}  Nbd7 {[%clk 0:02:35]} 13. Nd3 {[%clk 0:03:05]}  Qc7 {[%clk 0:02:32]} 14. a4 {[%clk 0:03:05]}  Rad8 {[%clk 0:02:29]} 15. Qe2 {[%clk 0:03:04]}  Rfe8 {[%clk 0:02:04]} 16. e5 {[%clk 0:02:59]}  Nd5 {[%clk 0:01:59]} 17. Bxd5 {[%clk 0:02:46]}  exd5 {[%clk 0:01:58]} 18. e6 {[%clk 0:02:46]}  Nf6 {[%clk 0:01:48]} 19. Nf4 {[%clk 0:02:34]}  Bd6 {[%clk 0:01:44]} 20. Bxf6 {[%clk 0:02:32]}  Bxf4 {[%clk 0:01:44]} 21. Bxd8 {[%clk 0:02:32]}  Qxd8 {[%clk 0:01:25]} 22. exf7+ {[%clk 0:02:17]}  Kxf7 {[%clk 0:01:24]} 23. Qxe8+ {[%clk 0:02:17]}  Qxe8 {[%clk 0:01:24]} 24. Rxe8 {[%clk 0:02:18]}  Bxd2 {[%clk 0:01:24]} 25. Re2 {[%clk 0:02:19]}  Bc3 {[%clk 0:01:20]} 26. Rd1 {[%clk 0:02:20]}  d4 {[%clk 0:01:19]} 27. Rd3 {[%clk 0:02:20]}  a6 {[%clk 0:01:17]} 28. Rf3+ {[%clk 0:02:20]}  Kg6 {[%clk 0:01:15]} 29. Re6+ {[%clk 0:02:16]}  Kh5 {[%clk 0:01:13]} 30. Re5+ {[%clk 0:02:13]}  Kg6 {[%clk 0:01:11]} 31. Rxc5 {[%clk 0:02:13]} 1-0


[Site "https://www.chess.com"]

[Event "Titled Tuesday Blitz September 13 Late 2022"]
[White "Karas, Marek"]
[Black "Hambleton, Aman"]
[WhiteFideId "14928558"]
[BlackFideId "2606577"]
[WhiteElo "2272"]
[BlackElo "2538"]
[Result "0-1"]
[Round "04"]
[TimeControl "180+1"]
[Date "2022.09.13"]
[WhiteClock "0:01:26"]
[BlackClock "0:01:00"]

1. d4 {[%clk 0:02:56]}  Nf6 {[%clk 0:02:59]} 2. Nf3 {[%clk 0:02:53]}  e6 {[%clk 0:02:57]} 3. c4 {[%clk 0:02:53]}  b6 {[%clk 0:02:56]} 4. a3 {[%clk 0:02:52]}  Bb7 {[%clk 0:02:56]} 5. Nc3 {[%clk 0:02:53]}  Ne4 {[%clk 0:02:56]} 6. Nxe4 {[%clk 0:02:51]}  Bxe4 {[%clk 0:02:57]} 7. Nd2 {[%clk 0:02:51]}  Bb7 {[%clk 0:02:55]} 8. e4 {[%clk 0:02:49]}  g6 {[%clk 0:02:55]} 9. Bd3 {[%clk 0:02:47]}  Bg7 {[%clk 0:02:56]} 10. Nf3 {[%clk 0:02:46]}  d6 {[%clk 0:02:44]} 11. O-O {[%clk 0:02:44]}  O-O {[%clk 0:02:44]} 12. Bg5 {[%clk 0:02:41]}  Bf6 {[%clk 0:02:40]} 13. Bh6 {[%clk 0:02:34]}  Bg7 {[%clk 0:02:41]} 14. Bg5 {[%clk 0:02:34]}  Qe8 {[%clk 0:02:40]} 15. Qd2 {[%clk 0:02:32]}  Nd7 {[%clk 0:02:31]} 16. Rfe1 {[%clk 0:02:28]}  a5 {[%clk 0:02:19]} 17. b3 {[%clk 0:02:19]}  e5 {[%clk 0:02:05]} 18. d5 {[%clk 0:02:14]}  f5 {[%clk 0:02:02]} 19. Bh6 {[%clk 0:02:06]}  Nc5 {[%clk 0:01:49]} 20. Rab1 {[%clk 0:01:58]}  Nxd3 {[%clk 0:01:13]} 21. Bxg7 {[%clk 0:01:50]}  Nxe1 {[%clk 0:01:14]} 22. Rxe1 {[%clk 0:01:35]}  Kxg7 {[%clk 0:01:09]} 23. Ng5 {[%clk 0:01:35]}  Bc8 {[%clk 0:01:09]} 24. f4 {[%clk 0:01:32]}  h6 {[%clk 0:01:05]} 25. Nf3 {[%clk 0:01:29]}  fxe4 {[%clk 0:01:04]} 26. fxe5 {[%clk 0:01:26]}  exf3 {[%clk 0:01:02]} 27. exd6 {[%clk 0:01:26]}  Qxe1+ {[%clk 0:01:00]} 0-1


[Site "https://www.chess.com"]

[Event "Titled Tuesday Blitz September 13 Late 2022"]
[White "Livaic, Leon"]
[Black "Bortnyk, Mykola"]
[WhiteFideId "14531534"]
[BlackFideId "14120836"]
[WhiteElo "2540"]
[BlackElo "2582"]
[Result "0-1"]
[Round "04"]
[TimeControl "180+1"]
[Date "2022.09.13"]
[WhiteClock "0:00:10"]
[BlackClock "0:01:02"]

1. d4 {[%clk 0:03:00]}  Nf6 {[%clk 0:02:59]} 2. c4 {[%clk 0:03:01]}  e6 {[%clk 0:03:00]} 3. Nf3 {[%clk 0:02:59]}  Bb4+ {[%clk 0:03:00]} 4. Bd2 {[%clk 0:02:59]}  Qe7 {[%clk 0:03:00]} 5. g3 {[%clk 0:02:59]}  Nc6 {[%clk 0:03:00]} 6. Nc3 {[%clk 0:02:59]}  d6 {[%clk 0:02:55]} 7. Bg2 {[%clk 0:02:58]}  Bxc3 {[%clk 0:02:52]} 8. Bxc3 {[%clk 0:02:59]}  Ne4 {[%clk 0:02:50]} 9. Rc1 {[%clk 0:02:59]}  O-O {[%clk 0:02:47]} 10. O-O {[%clk 0:02:59]}  Nxc3 {[%clk 0:02:37]} 11. Rxc3 {[%clk 0:03:00]}  e5 {[%clk 0:02:38]} 12. d5 {[%clk 0:02:59]}  Nb8 {[%clk 0:02:35]} 13. Nd2 {[%clk 0:02:58]}  b6 {[%clk 0:02:33]} 14. e4 {[%clk 0:02:33]}  Nd7 {[%clk 0:02:27]} 15. h4 {[%clk 0:02:27]}  a5 {[%clk 0:02:26]} 16. Kh2 {[%clk 0:02:27]}  Nc5 {[%clk 0:02:23]} 17. Nb3 {[%clk 0:02:27]}  f5 {[%clk 0:02:20]} 18. Nxc5 {[%clk 0:02:27]}  bxc5 {[%clk 0:02:20]} 19. exf5 {[%clk 0:02:27]}  Bxf5 {[%clk 0:02:21]} 20. Re3 {[%clk 0:02:19]}  Qd7 {[%clk 0:02:11]} 21. f4 {[%clk 0:02:12]}  Bg4 {[%clk 0:02:11]} 22. Bf3 {[%clk 0:02:09]}  Bxf3 {[%clk 0:02:06]} 23. Rexf3 {[%clk 0:02:10]}  exf4 {[%clk 0:01:58]} 24. Rxf4 {[%clk 0:02:11]}  Rxf4 {[%clk 0:01:56]} 25. Rxf4 {[%clk 0:02:12]}  Re8 {[%clk 0:01:55]} 26. Rf2 {[%clk 0:02:08]}  h6 {[%clk 0:01:51]} 27. b3 {[%clk 0:02:06]}  Qe7 {[%clk 0:01:49]} 28. Qf3 {[%clk 0:02:06]}  a4 {[%clk 0:01:39]} 29. bxa4 {[%clk 0:01:55]}  Ra8 {[%clk 0:01:39]} 30. Re2 {[%clk 0:01:45]}  Qf7 {[%clk 0:01:36]} 31. Qb3 {[%clk 0:01:25]}  Qf1 {[%clk 0:01:31]} 32. Rg2 {[%clk 0:00:54]}  Re8 {[%clk 0:01:23]} 33. Qc2 {[%clk 0:00:31]}  Re1 {[%clk 0:01:19]} 34. Kh3 {[%clk 0:00:30]}  h5 {[%clk 0:01:14]} 35. a5 {[%clk 0:00:26]}  Qh1+ {[%clk 0:01:05]} 36. Rh2 {[%clk 0:00:26]}  Qf3 {[%clk 0:01:06]} 37. Qg6 {[%clk 0:00:10]}  Qf1+ {[%clk 0:01:01]} 38. Rg2 {[%clk 0:00:10]}  Re2 {[%clk 0:01:02]} 0-1


[Site "https://www.chess.com"]

[Event "Titled Tuesday Blitz September 13 Late 2022"]
[White "Naroditsky, Daniel"]
[Black "Perez Ponsa, Federico"]
[WhiteFideId "2026961"]
[BlackFideId "117927"]
[WhiteElo "2628"]
[BlackElo "2604"]
[Result "1-0"]
[Round "04"]
[TimeControl "180+1"]
[Date "2022.09.13"]
[WhiteClock "0:00:32"]
[BlackClock "0:00:36"]

1. e4 {[%clk 0:02:56]}  c5 {[%clk 0:02:56]} 2. Nf3 {[%clk 0:02:56]}  d6 {[%clk 0:02:54]} 3. Bb5+ {[%clk 0:02:57]}  Nd7 {[%clk 0:02:53]} 4. O-O {[%clk 0:02:56]}  a6 {[%clk 0:02:53]} 5. Bd3 {[%clk 0:02:57]}  Ngf6 {[%clk 0:02:53]} 6. Re1 {[%clk 0:02:57]}  e6 {[%clk 0:02:53]} 7. Bf1 {[%clk 0:02:57]}  Be7 {[%clk 0:02:52]} 8. c3 {[%clk 0:02:56]}  O-O {[%clk 0:02:49]} 9. d4 {[%clk 0:02:56]}  b5 {[%clk 0:02:49]} 10. a4 {[%clk 0:02:55]}  Bb7 {[%clk 0:02:49]} 11. Bd3 {[%clk 0:02:54]}  e5 {[%clk 0:02:44]} 12. d5 {[%clk 0:02:51]}  c4 {[%clk 0:02:43]} 13. Bc2 {[%clk 0:02:51]}  Nc5 {[%clk 0:02:43]} 14. Nbd2 {[%clk 0:02:51]}  Nfd7 {[%clk 0:02:40]} 15. Nf1 {[%clk 0:02:49]}  Qc7 {[%clk 0:02:29]} 16. Ng3 {[%clk 0:02:46]}  g6 {[%clk 0:02:27]} 17. Bh6 {[%clk 0:02:37]}  Rfb8 {[%clk 0:02:27]} 18. h4 {[%clk 0:02:32]}  Nxa4 {[%clk 0:02:24]} 19. Bxa4 {[%clk 0:02:28]}  bxa4 {[%clk 0:02:25]} 20. Ng5 {[%clk 0:02:14]}  Nc5 {[%clk 0:02:21]} 21. Qf3 {[%clk 0:02:14]}  Bf8 {[%clk 0:02:05]} 22. Bxf8 {[%clk 0:02:12]}  Rxf8 {[%clk 0:02:06]} 23. Qe2 {[%clk 0:01:39]}  f6 {[%clk 0:01:39]} 24. Ne6 {[%clk 0:01:27]}  Nxe6 {[%clk 0:01:38]} 25. dxe6 {[%clk 0:01:28]}  Bc8 {[%clk 0:01:39]} 26. Rxa4 {[%clk 0:01:22]}  Bxe6 {[%clk 0:01:39]} 27. Rea1 {[%clk 0:01:23]}  Qb7 {[%clk 0:01:38]} 28. Nf1 {[%clk 0:01:16]}  d5 {[%clk 0:01:35]} 29. exd5 {[%clk 0:01:15]}  Bxd5 {[%clk 0:01:34]} 30. Ne3 {[%clk 0:01:16]}  Be6 {[%clk 0:01:32]} 31. Nxc4 {[%clk 0:01:14]}  Rfd8 {[%clk 0:01:25]} 32. Ne3 {[%clk 0:01:11]}  Rd6 {[%clk 0:01:23]} 33. h5 {[%clk 0:01:11]}  Kg7 {[%clk 0:01:22]} 34. Rb4 {[%clk 0:01:08]}  Rb6 {[%clk 0:01:16]} 35. h6+ {[%clk 0:01:03]}  Kf7 {[%clk 0:01:09]} 36. Rxb6 {[%clk 0:00:59]}  Qxb6 {[%clk 0:01:10]} 37. Rd1 {[%clk 0:00:58]}  Ke7 {[%clk 0:01:06]} 38. Nd5+ {[%clk 0:00:51]}  Bxd5 {[%clk 0:01:06]} 39. Rxd5 {[%clk 0:00:52]}  Rd8 {[%clk 0:01:07]} 40. Rxd8 {[%clk 0:00:51]}  Kxd8 {[%clk 0:01:07]} 41. Qc4 {[%clk 0:00:51]}  Qxb2 {[%clk 0:01:02]} 42. Qg8+ {[%clk 0:00:49]}  Ke7 {[%clk 0:00:59]} 43. Qxh7+ {[%clk 0:00:50]}  Ke6 {[%clk 0:01:00]} 44. Qxg6 {[%clk 0:00:43]}  Qc1+ {[%clk 0:01:00]} 45. Kh2 {[%clk 0:00:43]}  Qf4+ {[%clk 0:01:00]} 46. Kg1 {[%clk 0:00:41]}  Qc1+ {[%clk 0:00:59]} 47. Kh2 {[%clk 0:00:42]}  Qf4+ {[%clk 0:01:00]} 48. Kh3 {[%clk 0:00:43]}  Qxf2 {[%clk 0:00:53]} 49. h7 {[%clk 0:00:35]}  Qe3+ {[%clk 0:00:36]} 50. Kh2 {[%clk 0:00:32]} 1-0


[Site "https://www.chess.com"]